fUST/lending_fUST_20240430
["ID","MTS","AMOUNT","RATE_DAILY","PERIOD"]
[324914820,1714414243513,-151.0,0.00031667,2]
[324914822,1714414243522,-212.412938,0.00031667,2]
[324914824,1714414243531,-212.412938,0.00031667,2]
[324914826,1714414243539,-151.0,0.00031667,2]
[324914828,1714414243548,-151.0,0.00031667,2]
[324914830,1714414243558,-221.897827,0.00031667,2]
[324914832,1714414243566,-854.323349,0.00031667,2]
[324914834,1714414243576,-854.323349,0.00031667,2]
[324914836,1714414243586,-192.39474,0.00031667,2]
[324914837,1714414243596,-192.39474,0.00031667,2]
[324914839,1714414243607,-721.04711,0.00031667,2]
[324914842,1714414243617,-721.04711,0.00031667,2]
[324914843,1714414243628,-440.075358,0.00031667,2]
[324914846,1714414243638,-440.075358,0.00031667,2]
[324914848,1714414243647,-215.857588,0.00031667,2]
[324914850,1714414243656,-215.857588,0.00031667,2]
[324914851,1714414243665,-151.0,0.00031667,2]
[324914854,1714414243675,-917.974557,0.00031667,2]
[324914855,1714414243684,-917.974557,0.00031667,2]
[324914858,1714414243695,-1515.028385,0.00031667,2]
[324914860,1714414243704,-595.457895,0.00031667,2]
[324914862,1714414243713,-595.457895,0.00031667,2]
[324914864,1714414243723,-1515.028385,0.00031667,2]
[324914866,1714414243733,-151.0,0.00031667,2]
[324914868,1714414243742,-189.535421,0.00031667,2]
[324914870,1714414243751,-189.535421,0.00031667,2]
[324914872,1714414243761,-151.0,0.00031667,2]
[324914874,1714414243770,-810.389295,0.00031667,2]
[324914876,1714414243780,-810.389295,0.00031667,2]
[324914878,1714414243789,-4576.380518,0.00031667,2]
[324914880,1714414243798,-4576.380518,0.00031667,2]
[324914881,1714414243807,-151.0,0.00031667,2]
[324914884,1714414243816,-613.520445,0.00031667,2]
[324914885,1714414243825,-613.520445,0.00031667,2]
[324914888,1714414243834,-517.367002,0.00031667,2]
[324914890,1714414243845,-517.367002,0.00031667,2]
[324914892,1714414243854,-201.513641,0.00031667,2]
[324914894,1714414243864,-201.513641,0.00031667,2]
[324914896,1714414243875,-212.412938,0.00031669,2]
[324914897,1714414243886,-212.412938,0.00031669,2]
[324914900,1714414243896,-151.0,0.00031669,2]
[324914901,1714414243905,-151.0,0.00031669,2]
[324914904,1714414243914,-151.0,0.00031669,2]
[324914906,1714414243923,-854.323349,0.00031669,2]
[324914908,1714414243933,-854.323349,0.00031669,2]
[324914909,1714414243942,-854.323349,0.00031669,2]
[324914912,1714414243952,-854.323349,0.00031669,2]
[324914913,1714414243961,-192.39474,0.00031669,2]
[324914915,1714414243970,-192.39474,0.00031669,2]
[324914917,1714414243980,-721.04711,0.00031669,2]
[324914919,1714414243989,-721.04711,0.00031669,2]
[324914921,1714414243998,-721.04711,0.00031669,2]
[324914923,1714414244007,-721.04711,0.00031669,2]
[324914925,1714414244017,-440.075358,0.00031669,2]
[324914926,1714414244026,-440.075358,0.00031669,2]
[324914927,1714414244035,-440.075358,0.00031669,2]
[324914928,1714414244045,-440.075358,0.00031669,2]
[324914929,1714414244055,-215.857588,0.00031669,2]
[324914931,1714414244064,-215.857588,0.00031669,2]
[324914933,1714414244073,-215.857588,0.00031669,2]
[324914935,1714414244082,-215.857588,0.00031669,2]
[324914937,1714414244092,-151.0,0.00031669,2]
[324914939,1714414244102,-151.0,0.00031669,2]
[324914941,1714414244111,-917.974557,0.00031669,2]
[324914943,1714414244121,-917.974557,0.00031669,2]
[324914945,1714414244130,-917.974557,0.00031669,2]
[324914947,1714414244139,-917.974557,0.00031669,2]
[324914949,1714414244149,-1515.028385,0.00031669,2]
[324914951,1714414244159,-595.457895,0.00031669,2]
[324914953,1714414244169,-595.457895,0.00031669,2]
[324914955,1714414244178,-1515.028385,0.00031669,2]
[324914957,1714414244188,-595.457895,0.00031669,2]
[324914959,1714414244197,-595.457895,0.00031669,2]
[324914960,1714414244206,-1515.028385,0.00031669,2]
[324914961,1714414244215,-1515.028378,0.00031669,2]
[324914962,1714414244224,-151.0,0.00031669,2]
[324914963,1714414244233,-151.0,0.00031669,2]
[324914964,1714414244243,-189.535421,0.00031669,2]
[324914965,1714414244254,-189.535427,0.00031669,2]
[324914966,1714414244264,-151.0,0.00031669,2]
[324914967,1714414244274,-810.389295,0.00031669,2]
[324914968,1714414244284,-810.389302,0.00031669,2]
[324914969,1714414244293,-4576.380518,0.00031669,2]
[324914970,1714414244306,-4576.380517,0.00031669,2]
[324914971,1714414244315,-151.0,0.00031669,2]
[324914972,1714414244328,-613.520445,0.00031669,2]
[324914973,1714414244339,-613.52045,0.00031669,2]
[324914974,1714414244348,-517.367002,0.00031669,2]
[324914975,1714414244358,-517.366993,0.00031669,2]
[324914976,1714414244367,-201.513641,0.00031669,2]
[324914977,1714414244376,-201.513632,0.00031669,2]
[324914978,1714414244386,-15804.3521181,0.00031771,7]
[324914979,1714414244396,-212.412938,0.00031771,2]
[324914980,1714414244405,-212.412938,0.00031771,2]
[324914981,1714414244416,-212.412938,0.00031771,2]
[324914982,1714414244425,-212.412938,0.00031771,2]
[324914983,1714414244434,-151.0,0.00031771,2]
[324914984,1714414244444,-151.0,0.00031771,2]
[324914985,1714414244453,-151.0,0.00031771,2]
[324914986,1714414244463,-151.0,0.00031771,2]
[324914987,1714414244475,-151.0,0.00031771,2]
[324914988,1714414244485,-854.323349,0.00031771,2]
[324914989,1714414244607,-854.323349,0.00031771,2]
[324914990,1714414244617,-854.323349,0.00031771,2]
[324914991,1714414244628,-854.323349,0.00031771,2]
[324914992,1714414244638,-192.39474,0.00031771,2]
[324914993,1714414244647,-192.39474,0.00031771,2]
[324914995,1714414244657,-192.39474,0.00031771,2]
[324914997,1714414244667,-192.39474,0.00031771,2]
[324914999,1714414244678,-192.39474,0.00031771,2]
[324915001,1714414244688,-192.394731,0.00031771,2]
[324915003,1714414244697,-721.04711,0.00031771,2]
[324915005,1714414244707,-721.047106,0.00031771,2]
[324915007,1714414244716,-440.075358,0.00031771,2]
[324915009,1714414244726,-440.07536,0.00031771,2]
[324915011,1714414244735,-215.857588,0.00031771,2]
[324915013,1714414244744,-215.857597,0.00031771,2]
[324915015,1714414244754,-151.0,0.00031771,2]
[324915017,1714414244763,-917.974557,0.00031771,2]
[324915019,1714414244772,-917.974564,0.00031771,2]
[324915021,1714414244781,-595.457895,0.00031771,2]
[324915023,1714414244791,-595.457904,0.00031771,2]
[324915025,1714414244800,-151.0,0.00031772,2]
[324915027,1714414244809,-854.323349,0.00031772,2]
[324915029,1714414244818,-854.323347,0.00031772,2]
[324915030,1714414244827,-2483.30132558,0.00031799,2]
[324915032,1714414244837,-44421.76678401,0.00031799,2]
[324915034,1714414244848,-2187.0381657,0.00031799,2]
[324915036,1714414244856,-300.0,0.00031799,2]
[324915039,1714414244866,-781.30639903,0.00031799,2]
[324915041,1714414244875,-1192.06603489,0.00031799,14]
[324915042,1714414244884,-224.62805428,0.00031799,10]
[324915045,1714414244893,-286.55434273,0.00031799,2]
[324915047,1714414244902,-5455.20390675,0.00031799,2]
[324915048,1714414244911,-4087.68306417,0.00031799,2]
[324915051,1714414244921,-315.48630084,0.00031799,2]
[324915053,1714414244931,-281.12466351,0.00031799,2]
[324915055,1714414244940,-1022.94863432,0.00031799,10]
[324915057,1714414244949,-19196.75151336,0.00031799,2]
[324915059,1714414244959,-6632.5736523,0.00031799,5]
[324915061,1714414244967,-469.05936293,0.00031799,2]
[324915063,1714414244977,-430.70263388,0.00031799,2]
[324915064,1714414244986,-2867.67739548,0.00031799,2]
[324915066,1714414244995,-3011.72564414,0.00031799,2]
[324915068,1714414245004,-1003.38381317,0.00031799,2]
[324915071,1714414245014,-4578.11340256,0.00031799,2]
[324915072,1714414245023,-10000.0,0.00031799,30]
[324915075,1714414245033,-977.55062889,0.00031799,2]
[324915077,1714414245042,-153.34957969,0.00031799,2]
[324915078,1714414245051,-153.34957969,0.00031799,2]
[324915080,1714414245061,-447.13549251,0.00032,4]
[324915082,1714414245070,-158.392944,0.00032009,2]
[324915085,1714414245079,-159.0,0.00033,2]
[324915086,1714414245091,-176.0,0.0003309,7]
[324915088,1714414245100,-466.35092847,0.00034,4]
[324915089,1714414245110,-499.99999999,0.00034,2]
[324915090,1714414245120,-241.220731,0.00034521,2]
[324915091,1714414245130,-346.385761,0.00034521,2]
[324915092,1714414245140,-713.129427,0.00034521,2]
[324915093,1714414245149,-151.0,0.00034521,2]
[324915094,1714414245159,-1000.0,0.000348,3]
[324915095,1714414245168,-1329.78267311,0.00035,4]
[324915096,1714414245177,-1307.89147106,0.00035,7]
[324915097,1714414245186,-154.79875235,0.00035,15]
[324915098,1714414245196,-154.78330338,0.00035,4]
[324915099,1714414245205,-854.16964597,0.00035,2]
[324915100,1714414245214,-212.412938,0.00035616,2]
[324915101,1714414245224,-212.412938,0.00035616,2]
[324915102,1714414245233,-212.412938,0.00035616,2]
[324915103,1714414245243,-212.412938,0.00035616,2]
[324915104,1714414245257,-207.20128,0.00035616,2]
[324915107,1714414245267,-2582.142314,0.00035616,120]
[324915109,1714414245276,-25650.49,0.00035616,3]
[324915111,1714414245287,-176.0,0.0003565,14]
[324915113,1714414245296,-588.0,0.000357,2]
[324915115,1714414245305,-162.0,0.00036,2]
[324915117,1714414245315,-159.0,0.00036,2]
[324915119,1714414245327,-186.0449282,0.00036491,2]
[324915122,1714414245336,-2926.96341876,0.00037,2]
[324915125,1714414245348,-10579.73867581,0.00037,2]
[324915127,1714414245358,-150.0,0.00037041,2]
[324915129,1714414245367,-417.0,0.00037041,2]
[324915131,1714414245377,-500.6578387,0.00037301,2]
[324915134,1714414245387,-153.0,0.00037301,2]
[324915136,1714414245396,-162.0,0.00037397,2]
[324915138,1714414245406,-150.0,0.0003749,28]
[324915140,1714414245416,-1008.0,0.00038,120]
[324915142,1714414245425,-176.0,0.0003822,14]
[324915144,1714414245435,-166.765737,0.00038826,2]
[324915146,1714414245444,-20000.0,0.00039229,3]
[324915148,1714414245453,-212.412938,0.00039229,2]
[324915150,1714414245463,-212.412938,0.00039229,2]
[324915152,1714414245472,-162.0,0.00039267,14]
[324915154,1714414245481,-1000.0,0.000395,2]
[324915156,1714414245490,-158.0,0.0003978,33]
[324915158,1714414245499,-995.16145114,0.0004,10]
[324915160,1714414245509,-4253.66286157,0.0004,4]
[324915162,1714414245518,-379.95934411,0.0004,120]
[324915164,1714414245528,-631.41475046,0.0004,120]
[324915166,1714414245537,-1000.0,0.0004,120]
[324915168,1714414245547,-153.07,0.0004,120]
[324915170,1714414245556,-417.0,0.00040041,2]
[324915172,1714414245565,-241.220731,0.00040548,2]
[324915174,1714414245574,-346.385761,0.00040548,2]
[324915176,1714414245583,-713.129427,0.00040548,2]
[324915178,1714414245595,-176.0,0.0004079,14]
[324915180,1714414245604,-252.6859923,0.00041,2]
[324915182,1714414245613,-189.06259956,0.00041,2]
[324915184,1714414245622,-178.0504269,0.00041096,2]
[324915186,1714414245631,-1237.7995211,0.00041096,7]
[324915188,1714414245642,-166.666666,0.00041096,2]
[324915190,1714414245651,-212.412938,0.00041096,7]
[324915192,1714414245660,-212.41294,0.00041096,7]
[324915194,1714414245670,-500.0,0.00041096,31]
[324915196,1714414245680,-500.0,0.00041096,31]
[324915198,1714414245690,-500.0,0.00041096,31]
[324915200,1714414245699,-500.0,0.00041096,31]
[324915202,1714414245708,-500.0,0.00041096,31]
[324915204,1714414245717,-500.0,0.00041096,31]
[324915206,1714414245726,-500.0,0.00041096,31]
[324915208,1714414245736,-500.0,0.00041096,31]
[324915210,1714414245745,-500.0,0.00041096,31]
[324915212,1714414245754,-500.0,0.00041096,31]
[324915214,1714414245763,-500.0,0.00041096,31]
[324915216,1714414245772,-500.0,0.00041096,31]
[324915218,1714414245781,-500.0,0.00041096,31]
[324915220,1714414245790,-500.0,0.00041096,31]
[324915222,1714414245799,-500.0,0.00041096,31]
[324915224,1714414245809,-500.0,0.00041096,31]
[324915226,1714414245818,-500.0,0.00041096,31]
[324915228,1714414245828,-500.0,0.00041096,31]
[324915230,1714414245837,-500.0,0.00041096,31]
[324915232,1714414245847,-500.0,0.00041096,31]
[324915234,1714414245856,-500.0,0.00041096,31]
[324915236,1714414245865,-500.0,0.00041096,31]
[324915238,1714414245875,-500.0,0.00041096,31]
[324915240,1714414245884,-500.0,0.00041096,31]
[324915242,1714414245893,-500.0,0.00041096,31]
[324915244,1714414245903,-500.0,0.00041096,31]
[324915247,1714414245913,-500.0,0.00041096,31]
[324915248,1714414245924,-558.43004854,0.00041096,31]
[324915250,1714414245934,-500.0,0.00041096,31]
[324915252,1714414245944,-500.0,0.00041096,31]
[324915254,1714414245954,-500.0,0.00041096,31]
[324915256,1714414245966,-500.0,0.00041096,31]
[324915258,1714414245975,-500.0,0.00041096,31]
[324915261,1714414245986,-500.0,0.00041096,31]
[324915263,1714414245996,-500.0,0.00041096,31]
[324915264,1714414246005,-500.0,0.00041096,31]
[324915266,1714414246014,-500.0,0.00041096,31]
[324915269,1714414246024,-500.0,0.00041096,31]
[324915270,1714414246033,-500.0,0.00041096,31]
[324915272,1714414246044,-500.0,0.00041096,31]
[324915274,1714414246053,-500.0,0.00041096,31]
[324915276,1714414246062,-500.0,0.00041096,31]
[324915279,1714414246072,-500.0,0.00041096,31]
[324915280,1714414246081,-625.90517668,0.00041096,31]
[324915283,1714414246093,-625.90517668,0.00041096,31]
[324915284,1714414246102,-625.90517668,0.00041096,31]
[324915288,1714414246112,-625.90517668,0.00041096,31]
[324915290,1714414246122,-625.90517668,0.00041096,31]
[324915291,1714414246131,-625.90517668,0.00041096,31]
[324915294,1714414246140,-625.90517668,0.00041096,31]
[324915296,1714414246150,-625.90517668,0.00041096,31]
[324915298,1714414246160,-625.90517668,0.00041096,31]
[324915299,1714414246169,-625.90517668,0.00041096,31]
[324915301,1714414246178,-625.90517668,0.00041096,31]
[324915303,1714414246187,-625.90517668,0.00041096,31]
[324915305,1714414246197,-625.90517668,0.00041096,31]
[324915307,1714414246206,-625.90517668,0.00041096,31]
[324915310,1714414246216,-625.90517668,0.00041096,31]
[324915312,1714414246225,-630.17271198,0.00041096,31]
[324915314,1714414246235,-630.17271198,0.00041096,31]
[324915316,1714414246246,-630.17271198,0.00041096,31]
[324915318,1714414246257,-630.17271198,0.00041096,31]
[324915320,1714414246268,-630.17271198,0.00041096,31]
[324915321,1714414246277,-630.17271198,0.00041096,31]
[324915323,1714414246287,-630.17271198,0.00041096,31]
[324915325,1714414246297,-630.17271198,0.00041096,31]
[324915327,1714414246306,-630.17271198,0.00041096,31]
[324915329,1714414246315,-630.17271198,0.00041096,31]
[324915331,1714414246326,-630.17271198,0.00041096,31]
[324915333,1714414246335,-630.17271198,0.00041096,31]
[324915335,1714414246345,-648.17764656,0.00041096,31]
[324915337,1714414246354,-645.7,0.0004132,30]
[324915339,1714414246363,-150.5,0.00041324,35]
[324915341,1714414246373,-912.0,0.00041324,35]
[324915343,1714414246382,-168.58,0.00041324,35]
[324915345,1714414246392,-693.0,0.00041324,35]
[324915347,1714414246401,-150.5,0.00041334,35]
[324915349,1714414246410,-912.0,0.00041334,35]
[324915351,1714414246420,-150.5,0.00041334,35]
[324915353,1714414246430,-693.0,0.00041334,35]
[324915355,1714414246439,-167.52,0.00041344,35]
[324915357,1714414246448,-150.5,0.00041344,35]
[324915359,1714414246456,-912.0,0.00041344,35]
[324915361,1714414246465,-150.5,0.00041344,35]
[324915363,1714414246474,-693.0,0.00041344,35]
[324915365,1714414246484,-50127.94015043,0.00041354,90]
[324915385,1714414246659,-1645.89,0.00041354,90]
[324915396,1714414246749,265.65951833,0.00012737,7]
[324915404,1714414246816,-840.682397,0.00021918,2]
[324915406,1714414246825,-236.64272116,0.00022,2]
[324915408,1714414246835,-840.682397,0.00023989,2]
[324915410,1714414246845,-298.60819548,0.00027,2]
[324915482,1714414247807,-542.07420152,0.00027,2]
[324915483,1714414247817,-840.682397,0.0002763,2]
[324915484,1714414247827,-840.682397,0.0002763,2]
[324915485,1714414247836,-840.682397,0.00028,2]
[324915486,1714414247846,-1849.73393734,0.00041354,90]
[324915487,1714414247859,-21249.83479403,0.00041354,90]
[324915499,1714414248568,-236.64272116,0.00022,2]
[324915500,1714414248578,-840.682397,0.000299,2]
[324915501,1714414248587,-184.11488184,0.0003089,3]
[324915522,1714414419310,150.0,0.0002022,120]
[324915523,1714414419938,150.0,0.0002279,120]
[324915524,1714414420501,150.0,0.0002536,120]
[324915526,1714414488666,150.0,0.000206,110]
[324915530,1714414603983,265.65951833,0.00013013,7]
[324915531,1714414637640,1203.25513556,9.999e-05,2]
[324915532,1714414676223,700.5279589,9.999e-05,2]
[324915533,1714414685056,1091.47655963,9.999e-05,2]
[324915534,1714414686496,265.65951833,0.00012634,7]
[324915535,1714414686650,1343.99616888,9.999e-05,2]
[324915536,1714414706506,329.90404437,0.00011388,7]
[324915557,1714414875261,700.5279589,9.999e-05,2]
[324915558,1714414877199,1119.9968074,9.999e-05,2]
[324915559,1714414889440,150.0,0.0002058,110]
[324915560,1714414890056,150.0,0.0002312,110]
[324915561,1714414953700,583.51833665,9.999e-05,2]
[324915568,1714415036210,583.51833665,9.999e-05,2]
[324915569,1714415108943,583.51833665,9.999e-05,2]
[324915572,1714415167627,24900.0,0.00010062,2]
[324915573,1714415185237,583.51833665,9.999e-05,2]
[324915574,1714415244304,-153.0,0.00010482,2]
[324915575,1714415255034,674.1767093,9.488e-05,2]
[324915576,1714415267790,583.51833665,9.999e-05,2]
[324915577,1714415306273,615.2889868,9.711e-05,2]
[324915580,1714415336254,583.51833665,9.999e-05,2]
[324915581,1714415347233,-300.0,0.00010477,2]
[324915582,1714415347253,-344.57157105,0.00010478,2]
[324915583,1714415347273,-3452.68502854,0.00010478,2]
[324915590,1714415361089,-583.51833665,0.00010477,2]
[324915591,1714415361108,-7873.55611444,0.00010477,2]
[324915592,1714415361129,-23080.71232966,0.00010478,2]
[324915593,1714415367480,-32677.19449565,0.00010478,2]
[324915594,1714415367500,-15672.89435023,0.00010479,2]
[324915595,1714415367520,-278.54178258,0.00011381,2]
[324915596,1714415367540,-736.16028636,0.00011388,2]
[324915597,1714415367560,-420.0,0.00011525,2]
[324915598,1714415367578,-12172.572259,0.00011835,2]
[324915599,1714415367601,-1850.87906513,0.00012636,2]
[324915627,1714415432146,-583.51833665,0.00012632,2]
[324915629,1714415432156,-206.84821855,0.00012633,2]
[324915631,1714415432165,-300.0,0.00012634,2]
[324915632,1714415432174,-295.20991838,0.00012635,2]
[324915692,1714415438183,-7578.34619606,0.00012635,2]
[324915694,1714415438192,-1700.77344782,0.00012636,2]
[324915696,1714415438202,-1061.44424066,0.00013013,2]
[324915698,1714415438212,-166.666666,0.00013699,2]
[324915700,1714415438221,-420.0,0.00013898,2]
[324915702,1714415438231,-587.0,0.00015288,2]
[324915704,1714415438240,-514.23297925,0.00016,2]
[324915706,1714415438249,-823.0,0.00016816,2]
[324915708,1714415438259,-1152.0,0.00018498,2]
[324915710,1714415438268,-975.73898678,0.000189,2]
[324915712,1714415438277,-59210.59185385,0.00019176,2]
[324915714,1714415438287,-15672.89435023,0.00019177,2]
[324915716,1714415438299,-500.0,0.00019178,2]
[324915718,1714415438307,-417.71454437,0.00019178,2]
[324915720,1714415438316,-200.5077851,0.00019178,2]
[324915722,1714415438326,-500.0,0.00019178,2]
[324915724,1714415438335,-500.0,0.00019178,2]
[324915726,1714415438344,-179.258833,0.00019178,2]
[324915728,1714415438353,-468.83828358,0.00019178,2]
[324915730,1714415438362,-500.0,0.00019178,2]
[324915732,1714415438371,-500.0,0.00019178,2]
[324915734,1714415438381,-608.72016633,0.00019178,2]
[324915736,1714415438390,-496.38692926,0.00019178,2]
[324915738,1714415438399,-333.7873741,0.00019178,2]
[324915740,1714415438409,-500.0,0.00019178,2]
[324915742,1714415438418,-500.0,0.00019178,2]
[324915744,1714415438427,-500.0,0.00019178,2]
[324915746,1714415438437,-161.001113,0.00019178,2]
[324915748,1714415438447,-67415.61392424,0.0002,2]
[324915750,1714415438455,-241.68429594,0.0002,2]
[324915752,1714415438465,-5460.61782475,0.0002,2]
[324915754,1714415438474,-1613.0,0.00020348,2]
[324915756,1714415438483,-150.0,0.0002058,3]
[324915758,1714415438492,-581.69,0.00020902,3]
[324915760,1714415438501,-470.00304795,0.00020908,2]
[324915762,1714415438510,-665.19591499,0.00020908,2]
[324915764,1714415438520,-722.79071146,0.00020911,2]
[324915766,1714415438528,-1055.72423294,0.00020911,2]
[324915768,1714415438538,-753.61238123,0.00020911,3]
[324915770,1714415438548,-877.48407131,0.00020912,2]
[324915772,1714415438557,-1817.4890164,0.00020912,2]
[324915773,1714415438566,-2011.38702719,0.00020912,2]
[324915775,1714415438576,-450.59499644,0.00020912,2]
[324915777,1714415438585,-102033.00747422,0.00020912,2]
[324915780,1714415438595,-228.81313784,0.00020913,2]
[324915782,1714415438605,-329.85224064,0.00020913,2]
[324915783,1714415438616,-1720.92956934,0.00020913,2]
[324915786,1714415438627,-159.19819518,0.00022,2]
[324915787,1714415438636,-154.78330338,0.00022,2]
[324915790,1714415438647,-2258.0,0.00022383,2]
[324915791,1714415438656,-201.517494,0.00022466,2]
[324915794,1714415438668,-237.638016,0.00022466,2]
[324915795,1714415438678,-714.0781204,0.00023,2]
[324915797,1714415438689,-191.50617302,0.0002312,2]
[324915799,1714415438699,-10596.07047515,0.0002312,2]
[324915801,1714415438708,-150.0,0.0002312,3]
[324915803,1714415438717,-1564.03593502,0.0002312,2]
[324915805,1714415438726,-2000.0,0.0002312,2]
[324915807,1714415438735,-3955.20467131,0.0002312,10]
[324915809,1714415438744,-620.15544357,0.00023408,2]
[324915811,1714415438754,-155.48490975,0.00023749,2]
[324915813,1714415438763,-975.73898678,0.000239,2]
[324915816,1714415438772,-620.00777218,0.00024578,2]
[324915818,1714415438782,-3162.0,0.00024621,2]
[324915820,1714415438794,-561.50354785,0.00024657,2]
[324915822,1714415438804,-10000.0,0.00025131,2]
[324915824,1714415438813,-151.47429953,0.00025179,2]
[324915826,1714415438822,-756.73987356,0.0002536,2]
[324915828,1714415438833,-493.18707257,0.00025368,2]
[324915842,1714415438961,-152.41297352,0.0002548,2]
[324915844,1714415438970,-152.41297352,0.00025514,2]
[324915846,1714415438979,-156.18617837,0.00025631,2]
[324915848,1714415438989,-151.47429953,0.00025645,2]
[324915850,1714415439003,-150.0,0.0002565,3]
[324915852,1714415439016,-620.00038861,0.00025807,2]
[324915854,1714415439026,-493.18707257,0.00025889,2]
[324915856,1714415439035,-620.00103098,0.00026041,2]
[324915858,1714415439044,-153.79833288,0.00026059,2]
[324915860,1714415439053,-150.05713711,0.00026219,2]
[324915862,1714415439062,-493.18707257,0.00026324,2]
[324915864,1714415439071,-152.41297352,0.00026403,2]
[324915866,1714415439081,-152.41297352,0.00026409,2]
[324915868,1714415439090,-150.05713711,0.00026463,2]
[324915870,1714415439099,-153.79833288,0.00026717,2]
[324915872,1714415439108,-8527.63031331,0.00027,2]
[324915874,1714415439117,-150.05713711,0.00027076,2]
[324915876,1714415439126,-4427.0,0.00027083,2]
[324915878,1714415439135,-620.00001943,0.00027098,2]
[324915880,1714415439144,-153.79833288,0.00027126,2]
[324915882,1714415439154,-156.18617837,0.00027132,2]
[324915884,1714415439163,-493.18707257,0.00027172,2]
[324915886,1714415439172,-153.79833288,0.00027237,2]
[324915888,1714415439182,-153.79833288,0.0002732,2]
[324915890,1714415439192,-620.00005155,0.00027343,2]
[324915892,1714415439201,-166.666666,0.00027397,2]
[324915894,1714415439211,-197.52613622,0.000274,2]
[324915896,1714415439219,-150.05713711,0.00027437,2]
[324915898,1714415439229,-150.05713711,0.00027627,2]
[324915900,1714415439238,-151.47429953,0.00027648,2]
[324915902,1714415439247,-153.79833288,0.00027722,2]
[324915904,1714415439257,-156.18617837,0.00027728,2]
[324915906,1714415439266,-493.18707257,0.00027823,2]
[324915908,1714415439275,-150.05713711,0.00027831,2]
[324915909,1714415439284,-493.18707257,0.0002789,2]
[324915910,1714415439295,-493.18707257,0.00027931,2]
[324915911,1714415439303,-220.92131871,0.00028,2]
[324915912,1714415439312,-504.29406395,0.00028,2]
[324915913,1714415439321,-2405.9576,0.00028035,30]
[324915914,1714415439330,-166.666666,0.00028038,2]
[324915915,1714415439339,-152.41297352,0.00028093,2]
[324915916,1714415439349,-150.0,0.0002819,3]
[324915917,1714415439359,-150.05713711,0.00028444,2]
[324915918,1714415439368,-620.00000097,0.00028453,2]
[324915919,1714415439377,-201.517494,0.00028493,2]
[324915920,1714415439386,-237.638016,0.00028493,2]
[324915921,1714415439395,-233.2921437,0.00028493,2]
[324915922,1714415439404,-156.18617837,0.00028658,2]
[324915923,1714415439414,-150.77383924,0.00028669,2]
[324915924,1714415439423,-166.666666,0.00028679,2]
[324915925,1714415439432,-152.41297352,0.00028789,2]
[324915926,1714415439442,-493.18707257,0.000288,2]
[324915927,1714415439452,-1517.06011,0.000291,7]
[324915928,1714415439461,-301.54767848,0.00029151,4]
[324915929,1714415439471,-150.05713711,0.00029274,2]
[324915931,1714415439480,-166.666666,0.00029321,2]
[324915933,1714415439489,-150.05713711,0.00029354,2]
[324915936,1714415439498,-153.79833288,0.00029454,2]
[324915939,1714415439508,-151.47429953,0.00029532,2]
[324915941,1714415439517,-1000.0,0.000296,7]
[324915943,1714415439526,-603.09535696,0.00029641,7]
[324915945,1714415439536,-150.05713711,0.00029711,2]
[324915947,1714415439547,-493.18707257,0.00029753,2]
[324915949,1714415439556,-3204.0,0.00029791,2]
[324915951,1714415439565,-150.05713711,0.00029801,2]
[324915953,1714415439575,-620.00000005,0.00029875,2]
[324915955,1714415439584,-166.666666,0.00029962,2]
[324915957,1714415439593,-154.78330338,0.0003,4]
[324915959,1714415439608,-1366.26453115,0.0003,4]
[324915961,1714415439617,-154.78330338,0.0003,4]
[324915963,1714415439627,-154.78330338,0.0003,4]
[324915965,1714415439638,-265.0,0.0003,2]
[324915967,1714415439647,-493.18707257,0.00030085,7]
[324915969,1714415439656,-1000.0,0.000301,7]
[324915971,1714415439665,-166.74380429,0.00030139,4]